bitfinex/quotes_ETHUSD_20250511
["timestamp","ask_amount","ask_price","bid_price","bid_amount"]
[1746945025191,3.93703567,2540.0,2538.9,0.761]
[1746945025192,3.93733559,2539.8,2538.9,0.761]
[1746945026407,3.5450772,2539.8,2538.9,0.761]
[1746945026705,3.93837517,2539.2,2538.9,0.761]
[1746945026913,3.93827511,2539.2,2538.9,0.761]
[1746945028376,2.663,2539.4,2538.9,0.761]
[1746945028573,3.93834157,2539.2,2538.9,0.761]
[1746945028880,0.55,2540.0,2538.9,0.761]
[1746945028881,6.60030634,2539.9,2538.9,0.761]
[1746945029100,3.93737294,2539.8,2538.9,0.761]
[1746945030190,3.93771231,2539.6,2538.9,0.761]
[1746945031044,3.93753377,2539.7,2538.9,0.761]
[1746945031531,3.93799743,2539.4,2538.9,0.761]
[1746945032118,3.93747292,2539.7,2538.9,0.761]
[1746945032339,3.93788436,2539.5,2538.9,0.761]
[1746945032720,3.93747292,2539.7,2538.9,0.761]
[1746945032924,3.9379141,2539.5,2538.9,0.761]
[1746945033231,3.93803709,2539.4,2538.9,0.761]
[1746945037440,3.93796828,2539.4,2538.7,0.7832]
[1746945037639,3.93886844,2538.9,2538.7,0.7832]
[1746945037953,3.5450772,2539.3,2538.7,0.7832]
[1746945037954,3.93863805,2539.0,2538.7,0.7832]
[1746945038165,3.93856815,2539.0,2538.7,0.7832]
[1746945038458,3.9387171,2538.9,2538.7,0.7832]
[1746945038646,3.93859769,2539.0,2538.7,0.7832]
[1746945041071,3.93835688,2539.2,2538.7,0.7832]
[1746945041367,7.48375455,2539.0,2537.8,0.7832]
[1746945041577,3.93963576,2538.4,2538.0,0.7832]
[1746945041746,3.5450772,2538.7,2538.0,0.7832]
[1746945042072,3.5450772,2538.4,2538.0,0.7832]
[1746945042245,3.9401545,2538.0,2537.3,0.7832]
[1746945042451,3.94000048,2538.1,2537.3,8.7832]
[1746945042661,3.93987264,2538.2,2537.5,0.7832]
[1746945042871,3.93999053,2538.1,2537.5,0.7832]
[1746945043671,3.94029094,2537.9,2537.5,0.7832]
[1746945044339,7.48511194,2538.1,2537.5,0.7832]
[1746945044562,3.94052807,2537.8,2537.5,0.7832]
[1746945044758,3.94069258,2537.7,2537.5,0.7832]
[1746945045241,10.9428483,2537.8,2537.1,0.7832]
[1746945045444,7.4855483,2537.8,2537.1,0.7832]
[1746945046140,3.5450772,2538.1,2537.2,0.03941291]
[1746945046443,3.5450772,2537.8,2537.1,0.7832]
[1746945046659,3.94060737,2537.7,2537.1,0.7832]
[1746945047085,3.94073299,2537.6,2537.1,0.7832]
[1746945047249,3.9406384,2537.7,2537.1,0.7832]
[1746945047446,7.48553423,2537.8,2537.1,0.7832]
[1746945048084,3.94057611,2537.7,2537.1,0.7832]
[1746945048288,3.94076454,2537.6,2537.1,0.7832]
[1746945048476,3.94064802,2537.7,2537.1,0.7832]
[1746945048651,3.5450772,2537.8,2537.1,0.7832]
[1746945049262,1.08710399,2538.1,2537.1,0.7832]
[1746945049263,0.28980399,2538.1,2537.2,0.03941293]
[1746945049469,2.661,2538.2,2537.3,0.7832]
[1746945049754,6.60080168,2538.2,2537.3,0.7832]
[1746945050150,2.661,2538.2,2537.3,0.7832]
[1746945050407,6.60083217,2538.2,2537.2,0.7832]
[1746945050954,6.60086914,2538.2,2537.2,0.7832]
[1746945052578,4.3423772,2538.6,2537.4,0.7832]
[1746945052886,3.93951202,2538.4,2537.6,0.7875]
[1746945053886,2.661,2538.5,2537.6,0.7875]
[1746945053887,3.5450772,2538.6,2537.6,0.7875]
[1746945054086,3.93933425,2538.5,2537.6,0.7875]
[1746945054757,6.60007007,2538.7,2537.6,0.7875]
[1746945054987,3.93919422,2538.6,2537.8,0.7875]
[1746945055195,3.93919422,2538.6,2537.9,0.7875]
[1746945055377,3.93933425,2538.5,2537.9,0.7875]
[1746945055595,3.5450772,2538.6,2537.9,0.7875]
[1746945055805,3.94010106,2538.1,2537.3,0.7875]
[1746945056007,3.94029684,2537.9,2537.3,8.7875]
[1746945056718,2.661,2538.0,2536.5,0.35450772]
[1746945057007,3.94060999,2537.7,2536.6,8.0]
[1746945057168,3.5450772,2537.8,2536.7,0.7875]
[1746945057369,9.26033465,2537.9,2536.7,0.7875]
[1746945057580,4.3038772,2538.4,2537.0,0.7875]
[1746945057779,5.32,2538.3,2537.2,0.7875]
[1746945058074,9.25964734,2538.3,2537.4,0.7596]
[1746945058574,5.32,2538.3,2537.4,0.7596]
[1746945058877,9.25973752,2538.3,2537.4,0.7596]
[1746945059074,4.3038772,2538.4,2537.4,0.7596]
[1746945059384,2.661,2538.4,2537.5,0.7596]
[1746945059598,8.0,2538.6,2537.5,0.7596]
[1746945059798,3.9399233,2538.2,2537.5,0.7596]
[1746945059998,3.93973964,2538.3,2537.5,0.7596]
[1746945060198,3.93981025,2538.2,2537.5,0.7596]
[1746945061211,3.5450772,2538.4,2537.5,0.7596]
[1746945061413,7.48459834,2538.4,2537.5,0.7596]
[1746945061757,3.93964985,2538.3,2537.5,0.7596]
[1746945061908,3.5450772,2538.4,2537.5,0.7596]
[1746945062080,7.4846276,2538.4,2537.5,0.7596]
[1746945062281,8.0,2538.6,2537.5,1.63556]
[1746945062477,10.661,2538.6,2537.6,0.79900418]
[1746945062701,18.11273595,2538.9,2537.6,0.79900418]
[1746945062980,2.661,2539.1,2537.8,8.0]
[1746945063180,2.661,2539.1,2537.9,0.8311]
[1746945063398,2.661,2539.1,2538.0,0.8311]
[1746945063590,10.661,2539.1,2538.0,0.8311]
[1746945063814,6.50609255,2539.4,2538.2,0.8311]
[1746945064014,6.50609255,2539.4,2538.4,0.8311]
[1746945064215,3.93835892,2539.2,2538.4,0.8311]
[1746945064516,4.15468891,2539.3,2538.4,0.8311]
[1746945064689,3.93888499,2538.8,2538.4,0.8311]
[1746945064890,3.5450772,2538.8,2538.1,0.8311]
[1746945065089,3.93946218,2538.5,2538.1,0.8311]
[1746945065518,3.93925019,2538.6,2538.1,0.8311]
[1746945065720,3.93937671,2538.5,2538.1,0.8311]
[1746945066215,3.93924653,2538.6,2538.1,0.8311]
[1746945066817,2.661,2538.7,2538.1,0.8311]
[1746945067319,3.93915732,2538.7,2538.1,0.8311]
[1746945067820,6.2060772,2538.8,2538.1,0.8311]
[1746945068027,3.93877887,2538.9,2538.1,0.8311]
[1746945068194,6.59977887,2538.9,2538.1,0.8311]
[1746945068594,3.93886875,2538.8,2538.1,0.8311]
[1746945068814,6.59978236,2538.9,2538.1,0.8311]
[1746945069016,3.9390239,2538.7,2538.1,0.8311]
[1746945069206,3.93951958,2538.4,2538.1,0.8311]
[1746945069409,3.93951958,2538.4,2537.4,2.661]
[1746945069627,3.93951958,2538.4,2537.5,1.017]
[1746945069806,3.93951958,2538.4,2537.6,0.7509]
[1746945070123,3.93934656,2538.5,2537.6,0.7509]
[1746945070328,3.93957504,2538.4,2537.6,0.7509]
[1746945070526,8.0,2538.7,2537.6,0.7509]
[1746945070732,2.661,2538.6,2537.8,0.7509]
[1746945071625,7.48401692,2538.8,2537.8,0.7509]
[1746945071827,2.658,2538.7,2537.8,0.7509]
[1746945072027,2.658,2538.9,2537.8,0.7509]
[1746945072028,3.93875542,2538.9,2537.8,0.7509]
[1746945072214,3.93875542,2538.9,2538.0,0.7509]
[1746945072419,6.59675542,2538.9,2538.0,0.7509]
[1746945073011,2.658,2538.9,2538.0,0.7509]
[1746945073635,7.48353031,2539.1,2538.0,0.7509]
[1746945073636,3.5450772,2539.1,2538.0,0.7509]
[1746945073934,6.59620755,2539.3,2538.2,0.7509]
[1746945074093,2.658,2539.3,2538.4,0.7509]
[1746945074526,6.59612487,2539.3,2538.4,0.7509]
[1746945074729,3.938358,2539.2,2538.4,0.7509]
[1746945074901,6.59615386,2539.3,2538.4,0.7509]
[1746945075243,11.93799626,2539.4,2538.4,0.7509]
[1746945075409,3.5450772,2539.5,2538.4,0.7509]
[1746945075615,6.2030772,2539.5,2538.4,0.7509]
[1746945076776,3.5450772,2539.5,2538.4,0.7509]
[1746945081342,7.48290643,2539.5,2538.4,0.7509]
[1746945081740,3.5450772,2539.5,2538.4,0.7509]
[1746945082146,7.48292711,2539.5,2538.4,0.7509]
[1746945082448,7.48340255,2539.2,2538.4,0.7509]
[1746945082651,3.93843351,2539.1,2538.4,0.7509]
[1746945083419,3.93866413,2539.0,2538.4,0.7509]
[1746945083833,6.2020772,2539.2,2538.4,0.7509]
[1746945084330,3.5450772,2539.2,2538.4,0.7509]
[1746945084720,7.48338214,2539.2,2538.4,0.7509]
[1746945085351,3.5450772,2539.2,2538.4,0.7509]
[1746945085561,3.93842253,2539.1,2538.4,0.7509]
[1746945086138,3.5450772,2539.2,2538.4,0.7509]
[1746945086448,0.819,2539.7,2538.5,0.84339305]
[1746945086620,0.819,2539.7,2538.5,0.804]
[1746945086621,6.59464269,2539.6,2538.5,0.804]
[1746945086824,7.48286518,2539.5,2538.5,0.804]
[1746945087658,3.5450772,2539.5,2538.5,0.804]
[1746945088051,7.48286539,2539.5,2538.5,0.804]
[1746945088250,3.93797948,2539.4,2538.5,0.804]
[1746945089627,3.5450772,2539.2,2538.5,0.804]
[1746945090056,3.93849532,2539.1,2538.5,0.804]
[1746945090464,3.93862454,2539.0,2538.5,0.804]
[1746945090759,3.93849532,2539.1,2538.5,0.804]
[1746945090959,7.48338167,2539.2,2538.5,0.804]
[1746945091856,4.15562068,2539.1,2538.5,0.804]
[1746945092266,3.93848092,2539.1,2538.5,0.804]
[1746945092635,3.93858557,2539.0,2538.5,0.804]
[1746945092961,6.2020772,2539.2,2538.5,0.804]
[1746945093639,10.14032743,2539.2,2538.5,0.804]
[1746945093944,0.21731447,2539.1,2538.7,0.8228]
[1746945094136,0.21731447,2539.1,2538.8,0.86218509]
[1746945094545,20.3800772,2539.9,2538.8,0.8228]
[1746945095668,3.5450772,2539.6,2538.8,0.8228]
[1746945096028,3.93802746,2539.4,2538.8,0.8228]
[1746945096569,3.93818899,2539.3,2538.8,0.8228]
[1746945096765,3.93804682,2539.4,2538.8,0.8228]
[1746945096964,7.48273505,2539.6,2538.8,0.8228]
[1746945097173,2.657,2539.5,2538.8,0.8228]
[1746945097468,6.59487885,2539.5,2538.8,0.8228]
[1746945097776,2.657,2539.5,2538.8,0.8228]
[1746945098381,4.71779735,2539.7,2538.8,0.8228]
[1746945098382,5.311,2539.7,2538.8,0.8228]
[1746945098548,0.7803,2540.2,2539.0,0.8228]
[1746945098748,2.657,2540.4,2539.2,0.8228]
[1746945098934,2.657,2540.4,2539.4,0.8228]
[1746945099139,0.21744361,2540.3,2539.4,0.8228]
[1746945099364,6.59342607,2540.4,2539.4,0.8228]
[1746945099564,2.657,2540.4,2539.4,0.8228]
[1746945099800,6.2020772,2540.6,2539.6,0.8228]
[1746945100000,6.2020772,2540.6,2539.2,0.55]
[1746945100001,2.657,2540.6,2539.8,0.8228]
[1746945101705,4.22738082,2540.7,2539.8,0.8228]
[1746945101889,10.13391286,2540.8,2539.9,0.8228]
[1746945103219,7.48091286,2540.8,2539.9,0.8228]
[1746945105073,3.5450772,2540.8,2539.9,0.8228]
[1746945105271,3.93634426,2540.5,2539.9,0.8228]
[1746945105472,3.5450772,2540.8,2539.9,0.8228]
[1746945105679,7.48088256,2540.8,2539.9,0.8228]
[1746945105886,10.13388256,2540.8,2539.9,0.8228]
[1746945106085,3.93593167,2540.7,2539.9,0.8228]
[1746945108578,10.13386954,2540.8,2539.9,0.8228]
[1746945109119,14.173,2540.9,2540.1,0.8019]
[1746945109609,3.93555124,2541.0,2540.1,0.8019]
[1746945110879,3.93536186,2541.1,2540.1,0.8019]
[1746945111075,7.48056094,2541.0,2540.1,0.8019]
[1746945111372,3.93619201,2540.6,2540.1,0.8019]
[1746945112348,4.69930017,2540.8,2540.1,0.8019]
[1746945112509,3.5450772,2541.0,2540.1,0.8019]
[1746945112843,3.9357223,2540.9,2540.1,0.8019]
[1746945113244,3.93578227,2540.8,2540.1,0.8019]
[1746945113422,7.48064474,2541.0,2540.1,0.8019]
[1746945113423,3.93618304,2540.6,2540.1,0.8019]
[1746945114209,3.9361273,2540.6,2540.1,0.8019]
[1746945114434,3.93588606,2540.8,2540.1,0.8019]
[1746945114641,3.93616298,2540.6,2540.1,0.8019]
[1746945115042,2.652,2540.9,2540.1,0.8019]
[1746945115344,3.93618501,2540.6,2540.1,0.8019]
[1746945116417,3.93598801,2540.7,2540.1,0.8019]
[1746945116744,2.652,2540.9,2540.1,0.8019]
[1746945117126,3.9358559,2540.8,2540.1,0.8019]
[1746945117327,2.652,2540.9,2540.1,0.8019]
[1746945117544,3.93593762,2540.7,2540.1,0.8019]
[1746945117851,2.652,2540.9,2540.1,0.8019]
[1746945118212,3.935906,2540.8,2540.1,0.8019]
[1746945118412,3.93594027,2540.7,2540.1,0.8019]
[1746945118613,3.93583252,2540.8,2540.1,0.8019]
[1746945119051,3.5450772,2541.8,2540.3,0.7916]
[1746945119271,4.2969772,2541.5,2540.5,0.7916]
[1746945119776,3.5450772,2541.2,2540.5,0.7916]
[1746945120622,6.58678937,2541.5,2540.5,0.7916]
[1746945120818,3.5450772,2541.8,2540.7,0.7916]
[1746945121024,6.1970772,2541.8,2540.9,0.7916]
[1746945121661,2.652,2541.8,2540.9,0.7916]
[1746945122431,6.58635372,2541.8,2541.1,0.7916]
[1746945122743,2.652,2541.8,2541.1,0.7916]
[1746945122949,6.58630667,2541.8,2541.1,0.7916]
[1746945123357,6.58630667,2541.8,2541.1,1.93566]
[1746945123669,2.652,2541.8,2541.1,1.93566]
[1746945123832,6.1970772,2541.8,2541.1,1.93566]
[1746945124036,10.13135601,2541.8,2541.1,1.93566]
[1746945124531,3.93438117,2541.7,2541.1,1.93566]
[1746945124733,10.13133847,2541.8,2541.1,1.93566]
[1746945125343,3.5450772,2541.5,2541.1,0.7916]
[1746945125546,3.93514874,2541.2,2540.6,0.7916]
[1746945125745,3.93483906,2541.4,2540.6,8.7916]
[1746945125948,3.93483906,2541.4,2540.7,0.7916]
[1746945126570,7.47982725,2541.5,2540.7,0.7916]
[1746945126735,3.93493213,2541.4,2540.7,1.93556]
[1746945127575,3.5450772,2541.5,2540.8,0.7916]
[1746945128780,2.648,2541.6,2540.8,0.7916]
[1746945129366,3.93492589,2541.4,2540.9,0.7916]
[1746945129551,6.58264529,2541.6,2540.9,0.7916]
[1746945129552,2.648,2541.6,2540.9,0.7916]
[1746945130168,3.93469604,2541.5,2540.9,0.7916]
[1746945130367,6.58259573,2541.6,2540.9,0.7916]
[1746945130685,2.648,2541.6,2540.9,0.7916]
[1746945131253,6.58254373,2541.6,2540.9,0.7916]
[1746945133141,3.93443084,2541.7,2540.9,0.7916]
[1746945133345,6.1970772,2541.8,2540.9,0.7916]
[1746945133584,3.93513343,2541.3,2540.9,0.7916]
[1746945133795,3.93502426,2541.3,2540.9,0.7916]
[1746945133954,3.93514874,2541.2,2540.9,0.7916]
[1746945134288,7.47986542,2541.5,2540.9,0.7916]
[1746945134575,3.5450772,2541.5,2540.9,0.7916]
[1746945135360,7.47979922,2541.5,2540.9,0.7916]
[1746945135769,3.5450772,2541.5,2540.9,0.7916]
[1746945135973,3.93543451,2541.1,2540.9,0.7916]
[1746945136151,3.93541113,2541.1,2540.9,0.7916]
[1746945138287,3.93541113,2541.1,2540.7,0.7681]
[1746945138493,3.93575669,2540.9,2540.2,0.7681]
[1746945138678,3.93592317,2540.7,2540.3,0.87681]
[1746945138877,3.93592317,2540.7,2540.2,0.7681]
[1746945139057,3.93599067,2540.7,2540.2,0.7681]
[1746945139893,3.5450772,2540.3,2539.2,0.7681]
[1746945140099,3.93696931,2540.1,2539.4,0.7681]
[1746945140593,7.48167316,2540.3,2539.4,0.7681]
[1746945140995,3.937041,2540.0,2539.5,0.7681]
[1746945141199,3.93690576,2540.1,2539.5,0.7681]
[1746945141361,0.21739469,2540.2,2539.5,0.7681]
[1746945141866,3.93676202,2540.2,2539.5,0.7681]
[1746945143285,7.48168517,2540.3,2539.5,0.7681]
[1746945143887,3.5450772,2540.3,2539.5,0.7681]
[1746945144065,3.704781,2540.4,2539.5,0.7681]
[1746945144399,10.28826499,2540.4,2539.5,0.7681]
[1746945144701,3.704781,2540.4,2539.5,0.80747413]
[1746945144906,3.704781,2540.4,2539.5,0.7681]
[1746945145069,3.704781,2540.4,2539.6,0.03937074]
[1746945145409,3.704781,2540.4,2539.7,0.7982]
[1746945146469,3.704781,2540.4,2539.9,0.7982]
[1746945146666,3.704781,2540.4,2540.1,0.7982]
[1746945148797,3.704781,2540.4,2540.1,0.83756552]
[1746945148992,3.704781,2540.4,2540.1,0.7982]
[1746945149398,3.704781,2540.4,2540.1,0.7995]
[1746945151596,3.704781,2540.4,2540.3,0.7995]
[1746945151988,3.704781,2540.4,2540.3,11.4465]
[1746945152188,3.704781,2540.4,2540.3,12.59508653]
[1746945153235,3.704781,2540.4,2540.3,9.94808653]
[1746945153426,3.704781,2540.4,2540.3,8.7995]
[1746945162727,3.704781,2540.4,2540.3,8.0]
[1746945164360,3.9358344,2540.8,2540.3,8.0]
[1746945164654,4.6965219,2540.9,2540.3,8.0]
[1746945165221,0.7609,2540.9,2540.3,8.0]
[1746945165847,2.46478902,2540.9,2540.3,8.0]
[1746945166067,2.46478902,2540.9,2540.3,8.87987]
[1746945166852,2.643,2541.1,2540.4,0.8052]
[1746945167552,1.70388902,2541.0,2540.4,0.8052]
[1746945167759,6.57838251,2541.1,2540.4,0.8052]
[1746945169372,2.643,2541.1,2540.4,0.8052]
[1746945169549,2.643,2541.1,2540.5,0.88052]
[1746945169719,0.7772,2541.5,2540.6,0.7756]
[1746945169922,0.7772,2542.0,2540.7,8.03936092]
[1746945170122,3.54380898,2541.9,2540.8,0.7756]
[1746945170323,0.7772,2541.5,2540.8,0.7756]
[1746945170864,4.7119108,2541.5,2540.8,0.7756]
[1746945171067,3.93484691,2541.4,2540.8,0.7756]
[1746945171233,3.93535184,2541.1,2540.6,0.7756]
[1746945171433,3.54380898,2541.3,2540.6,0.7756]
[1746945171635,4.7119488,2541.5,2540.6,0.7756]
[1746945171838,0.21774035,2541.4,2540.4,7.711819]
[1746945172060,4.15261509,2541.4,2540.5,1.2994819]
[1746945172265,3.93487474,2541.4,2540.5,1.2994819]
[1746945173074,3.93514412,2541.3,2540.5,1.2994819]
[1746945173277,0.795,2541.2,2539.7,0.55]
[1746945173443,3.93554834,2541.0,2540.0,5.283]
[1746945173779,3.93536563,2541.1,2540.0,2.642]
[1746945173938,3.93536563,2541.1,2540.1,8.0]
[1746945174279,4.73019947,2541.2,2540.2,1.0642]
[1746945174440,3.93530682,2541.1,2540.2,1.0642]
[1746945174663,0.21796918,2541.1,2540.2,1.0642]
[1746945174865,0.21796918,2541.1,2540.3,0.7808]
[1746945175065,4.15330135,2541.1,2540.3,0.7808]
[1746945175266,0.21796918,2541.0,2540.3,9.7653]
[1746945175462,0.21796918,2541.0,2540.4,0.7808]
[1746945175966,0.795,2541.2,2540.4,0.7808]
[1746945176362,8.795,2541.2,2540.4,0.7808]
[1746945176965,4.15339057,2541.1,2540.4,0.7808]
[1746945177767,0.21808697,2541.0,2540.4,0.7808]
[1746945178402,0.21808697,2541.1,2540.4,0.7808]
[1746945178566,4.1534049,2541.1,2540.4,0.7808]
[1746945178891,0.21808697,2541.1,2540.4,0.7808]
[1746945181202,0.21808697,2541.2,2540.4,0.7808]
[1746945181600,3.93537994,2541.1,2540.4,0.7808]
[1746945181792,0.21808697,2541.1,2540.4,0.7808]
[1746945182573,3.93557271,2541.0,2540.4,0.7808]
[1746945182775,3.93661363,2540.3,2540.1,0.8006]
[1746945182968,3.93654292,2540.3,2539.5,0.8006]
[1746945183199,3.93731789,2539.8,2538.9,0.8006]
[1746945183416,0.7551,2539.9,2538.9,0.8006]
[1746945183712,3.93776887,2539.6,2539.0,0.34426]
[1746945184317,3.93726565,2539.9,2539.2,0.8006]
[1746945184487,0.7551,2540.1,2539.2,0.8006]
[1746945184808,3.93671287,2540.2,2539.2,0.83998008]
[1746945185006,5.281,2540.3,2539.2,8.03938008]
[1746945185213,9.21760288,2540.3,2539.4,0.8006]
[1746945185578,5.281,2540.3,2539.4,0.8006]
[1746945185894,3.93658479,2540.3,2539.4,0.8006]
[1746945186072,0.7551,2540.5,2539.4,0.8006]
[1746945186369,3.93653006,2540.4,2539.4,0.8006]
[1746945186570,3.93653006,2540.4,2539.6,0.8006]
[1746945186997,4.6910691,2540.7,2539.7,0.03937321]
[1746945187194,3.9359691,2540.7,2539.7,0.8006]
[1746945188209,3.93619349,2540.6,2539.7,0.8006]
[1746945189222,5.282,2540.8,2539.7,0.8006]
[1746945189514,3.93611829,2540.6,2539.9,0.7864]
[1746945189683,3.93614741,2540.6,2539.9,0.7864]
[1746945190614,3.93697642,2540.1,2539.7,1.9864]
[1746945190921,0.7737,2540.6,2539.7,0.7864]
[1746945191095,0.7737,2540.6,2539.7,1.66897745]
[1746945191293,3.93643254,2540.4,2539.7,1.66897745]
[1746945191513,3.93657367,2540.3,2539.7,1.66897745]
[1746945191702,3.93685529,2540.1,2539.7,0.7864]
[1746945192015,3.93715256,2540.0,2539.5,8.7864]
[1746945192190,7.48070735,2540.1,2539.1,0.7864]
[1746945192397,3.93793924,2539.4,2539.1,0.7864]
[1746945192617,4.31750898,2539.8,2538.5,0.7864]
[1746945192786,3.54380898,2539.5,2538.5,2.54564]
[1746945192997,10.12463117,2539.5,2538.5,2.54564]
[1746945193216,3.93846756,2539.1,2538.5,2.54564]
[1746945193400,3.93830199,2539.2,2538.5,0.7864]
[1746945193906,3.93927789,2538.6,2538.4,2.643]
[1746945194109,3.93874071,2538.9,2538.2,0.7864]
[1746945194482,3.93904528,2538.7,2538.2,0.7864]
[1746945194896,3.93892584,2538.8,2538.2,0.7864]
[1746945195096,3.93877594,2538.9,2538.2,0.7864]
[1746945195619,9.98800604,2539.2,2538.2,1.12884]
[1746945195830,5.276,2539.2,2538.2,1.12884]
[1746945196131,5.276,2539.3,2538.3,0.7864]
[1746945197629,0.7737,2539.5,2538.4,0.03939033]
[1746945197789,0.7737,2539.9,2538.6,0.7864]
[1746945197989,6.0497,2539.9,2538.8,0.8138]
[1746945198286,3.93741883,2539.8,2538.8,0.8138]
[1746945198496,6.0497,2539.9,2538.9,0.03938365]
[1746945198695,5.276,2540.1,2539.0,0.8138]
[1746945198938,9.21293834,2540.1,2539.2,0.8138]
[1746945199140,3.93704324,2540.0,2539.2,0.8138]
[1746945199436,5.276,2540.1,2539.2,0.8138]
[1746945199798,3.93675901,2540.2,2539.2,0.8138]
[1746945200021,3.93675901,2540.2,2539.3,0.88138]
[1746945200211,5.276,2540.3,2539.3,0.88138]
[1746945200745,3.93747292,2539.7,2538.9,0.8138]
[1746945200895,3.93725755,2539.9,2538.9,0.8138]
[1746945201100,3.54380898,2540.1,2539.0,0.03938159]
[1746945201301,7.38053581,2540.2,2539.1,0.8138]
[1746945201501,6.0818,2540.2,2539.1,0.8138]
[1746945201804,3.93700787,2540.0,2539.1,0.8138]
[1746945202003,3.93747388,2539.7,2539.1,0.8138]
[1746945202227,3.93736907,2539.8,2539.1,0.8138]
[1746945202429,7.48067996,2540.1,2539.1,0.8138]
[1746945202732,3.93718989,2539.9,2539.1,0.8138]
[1746945202935,2.637,2540.0,2539.1,0.8138]
[1746945203631,3.93717226,2539.9,2539.1,0.8138]
[1746945203837,2.637,2540.0,2539.1,0.8138]
[1746945204034,3.93779459,2539.5,2539.1,0.8138]
[1746945204202,3.54380898,2539.8,2539.1,0.8138]
[1746945204403,3.93799522,2539.4,2539.1,0.8138]
[1746945204600,3.54380898,2539.8,2539.1,0.8138]
[1746945205000,6.57411747,2540.0,2539.1,0.8138]
[1746945205213,2.637,2540.0,2539.1,0.8138]
[1746945205432,3.93787837,2539.5,2539.1,0.8138]
[1746945206021,3.93805507,2539.4,2539.1,0.8138]
[1746945206424,3.93766468,2539.6,2539.1,0.8138]
[1746945206934,3.93780353,2539.5,2539.1,0.8138]
[1746945207110,3.93978643,2538.3,2538.0,0.806]
[1746945207445,3.93917907,2538.6,2538.0,0.806]
[1746945207645,3.9390239,2538.7,2538.0,0.806]
[1746945207819,2.637,2538.8,2538.0,0.806]
[1746945210112,6.18080898,2538.8,2538.0,0.806]
[1746945210456,3.93974023,2538.3,2537.6,0.7702]
[1746945210748,3.93983726,2538.2,2537.6,0.7702]
[1746945210917,3.54380898,2538.5,2537.6,0.7702]
[1746945211450,3.94058543,2537.7,2537.2,0.7602]
[1746945211768,3.94088669,2537.5,2537.2,0.7602]
[1746945212309,6.18080898,2537.6,2536.8,0.7602]
[1746945213146,6.18080898,2537.6,2536.4,0.8144]
[1746945213365,3.54380898,2537.3,2536.4,0.8144]
[1746945213649,3.54380898,2537.0,2536.4,0.8144]
[1746945213850,3.94236339,2536.6,2535.8,0.8144]
[1746945214052,3.94301041,2536.2,2535.8,0.8144]
[1746945214364,2.637,2536.5,2535.8,0.8144]
[1746945214525,2.637,2536.5,2535.8,1.97574]
[1746945214908,2.637,2537.0,2535.8,1.97574]
[1746945215112,2.637,2537.0,2536.0,0.8144]
[1746945215359,3.94193492,2536.9,2536.0,0.8144]
[1746945215557,2.637,2537.0,2536.0,0.8144]
[1746945215750,2.637,2537.0,2536.1,0.03942648]
[1746945216317,2.637,2537.0,2536.1,1.18860913]
[1746945216948,0.90213141,2574.7,2536.1,1.18860913]
[1746945216949,0.8026,2537.5,2536.3,8.0]
[1746945217254,4.74290289,2537.9,2536.5,0.8144]
[1746945217418,4.74290289,2537.9,2536.2,2.64]
[1746945217419,0.8026,2537.9,2536.7,8.8144]
[1746945217619,0.8026,2537.9,2536.8,2.64]
[1746945217951,0.8026,2538.5,2537.0,4.41103335]
[1746945218154,3.93960693,2538.4,2537.3,0.8144]
[1746945218315,3.93959564,2538.4,2537.4,8.03940468]
[1746945218515,3.93959564,2538.4,2537.4,8.0]
[1746945218720,4.74208117,2538.5,2537.4,8.0]
[1746945218921,4.74208117,2538.5,2537.5,1.14524]
[1746945219117,0.8026,2538.5,2537.4,8.0]
[1746945219430,3.9398711,2538.2,2537.4,8.0]
[1746945219945,3.93996964,2538.1,2537.4,8.0]
[1746945220333,3.93996964,2538.1,2537.3,8.8144]
[1746945220522,0.8026,2538.5,2537.3,8.8144]
[1746945220725,2.638,2538.4,2537.3,9.99905008]
[1746945221053,2.638,2538.7,2537.4,2.64]
[1746945221358,3.93918132,2538.6,2537.6,0.8144]
[1746945221661,3.93936827,2538.5,2537.6,0.8144]
[1746945221846,2.638,2538.7,2537.6,0.8144]
[1746945222047,6.5787803,2538.9,2537.7,0.0394037]
[1746945222243,3.93894806,2538.8,2537.9,8.0]
[1746945222449,3.59663335,2539.0,2537.9,9.06774037]
[1746945222658,6.57846837,2539.1,2538.0,0.8144]
[1746945222970,6.57846837,2539.1,2538.1,0.03939562]
[1746945223169,6.57846837,2539.1,2538.0,3.4544]
[1746945223473,6.57843763,2539.1,2538.1,8.0]
[1746945223624,6.57843763,2539.1,2538.2,1.14544]
[1746945223825,3.93859683,2539.0,2538.2,1.14544]
[1746945224026,3.93884571,2538.9,2538.2,1.14544]
[1746945224265,2.64,2539.1,2538.1,8.0]
[1746945224451,3.93855848,2539.0,2538.1,8.0]
[1746945225262,3.93872347,2538.9,2538.1,8.0]
[1746945225760,2.64,2539.1,2538.0,3.4544]
[1746945225922,2.64,2539.1,2538.0,2.64]
[1746945226126,3.93867296,2539.0,2538.1,1.16247404]
[1746945226369,3.93879184,2538.9,2538.1,1.16247404]
[1746945226672,3.93867922,2539.0,2538.1,1.16247404]
[1746945227235,2.64,2539.1,2538.1,1.16247404]
[1746945227428,6.57845209,2539.1,2538.1,1.16247404]
[1746945227629,3.93857552,2539.0,2538.2,0.3802474]
[1746945228129,6.5784642,2539.1,2538.2,0.3802474]
[1746945228339,2.64,2539.1,2538.2,0.41964126]
[1746945228541,6.57842973,2539.1,2538.2,0.3802474]
[1746945228773,6.57845893,2539.1,2538.2,0.3802474]
[1746945229528,3.93874136,2538.9,2538.2,0.3802474]
[1746945230165,3.93888501,2538.8,2538.1,0.7917]
[1746945230385,3.93979985,2538.2,2538.1,0.7917]
[1746945230669,3.94027725,2537.9,2537.7,0.8097]
[1746945231260,7.03933335,2538.2,2537.3,3.4147]
[1746945231564,3.94115661,2537.4,2536.9,0.7767]
[1746945231735,2.638,2537.8,2536.9,1.11817]